fUSD/lending_fUSD_20240805
["ID","MTS","AMOUNT","RATE_DAILY","PERIOD"]
[334183662,1722816293175,742.62,8.219e-05,2]
[334183663,1722816309397,5731.4994,0.00027,120]
[334183666,1722816584724,-619.27,9.838e-05,2]
[334183667,1722816584752,-250.0,9.839e-05,2]
[334183668,1722816584784,-1000.0,9.855e-05,2]
[334183670,1722816584812,-167.91,0.00010047,2]
[334183672,1722816584840,-742.62,0.00010462,2]
[334183673,1722816584868,-2964.31347449,0.00010462,2]
[334183674,1722816584896,-300.0,0.00010499,2]
[334183675,1722816584924,-1441.22761742,0.000105,2]
[334183676,1722816584956,-3044.34971574,0.000105,2]
[334183679,1722816609494,-582.46120931,9.853e-05,2]
[334183712,1722816633480,-417.53879069,9.853e-05,2]
[334183715,1722816633490,-300.0,0.00010499,2]
[334183718,1722816633500,-300.0,0.00010499,2]
[334183721,1722816633511,-8324.96208958,0.000105,2]
[334183724,1722816633521,-499.99,0.000105,2]
[334183726,1722816633531,-790.28888999,0.000105,2]
[334183728,1722816633544,-157.80455,0.000105,2]
[334183730,1722816633555,-2720.21567971,0.000105,2]
[334183736,1722816633607,-348.13928104,0.000105,2]
[334183738,1722816633617,-233.67071896,0.000105,2]
[334183740,1722816633630,-810.84,0.000105,2]
[334183743,1722816633643,-223.66268757,0.000105,2]
[334183745,1722816633654,-314.9890508,0.000105,2]
[334183746,1722816633664,-158.92239483,0.000105,2]
[334183748,1722816633675,-244.51851626,0.000105,2]
[334183750,1722816633686,-439.66673126,0.000105,2]
[334183754,1722816633711,-223.17141694,0.000105,2]
[334183756,1722816633721,-150.0,0.00010566,2]
[334183758,1722816633732,-68.44333755,0.00010567,2]
[334183760,1722816633745,-1131.25800403,0.00010567,2]
[334183763,1722816633771,-392.36702055,0.00010567,2]
[334183766,1722816633783,-1536.69297289,0.00010567,2]
[334183882,1722816639620,-13959.4303407,0.00010567,2]
[334183883,1722816639633,-43907.52299277,0.00010567,2]
[334183884,1722816639649,-6141.17833997,0.00010567,2]
[334183885,1722816639662,-7087.69658882,0.00010567,2]
[334183886,1722816639675,-324.165,0.00010567,2]
[334183889,1722816640741,-425.53898773,0.000105,2]
[334183890,1722816640750,-1918.1999529,0.00010567,2]
[334183891,1722816640762,-8652.09751292,0.00010567,2]
[334183892,1722816640781,-1597.73062505,0.00010567,2]
[334183893,1722816640791,-5870.37634595,0.00010567,2]
[334183894,1722816642139,-411.57531364,0.000105,2]
[334183895,1722816642150,-2830.82468636,0.00010567,2]
[334183896,1722816642246,-17025.54344349,0.00010567,2]
[334183897,1722816642257,-2922.90786409,0.00010567,2]
[334183898,1722816642307,-1365.02159675,0.00010567,2]
[334183899,1722816642319,-2528.0732479,0.00010567,2]
[334183900,1722816642358,-374.07477111,0.00010567,2]
[334184049,1722816643954,-227.61995131,0.000105,2]
[334184051,1722816643963,-59.16935669,0.00010567,2]
[334184055,1722816643994,-1614.05243999,0.00010567,2]
[334184061,1722816644046,-149904.17355952,0.00010567,2]
[334184063,1722816644058,-420.62,0.000106,2]
[334184065,1722816644067,-419.69,0.000106,2]
[334184066,1722816644076,-2643.3904,0.00010681,2]
[334184068,1722816644085,-303.1,0.000107,2]
[334184070,1722816644094,-420.62,0.000107,2]
[334184072,1722816644108,-834.36,0.000107,2]
[334184074,1722816644117,-200.0,0.000107,3]
[334184075,1722816644126,-150.0,0.00010726,2]
[334184077,1722816644135,-150.0,0.00010726,2]
[334184079,1722816644145,-150.0,0.00010728,2]
[334184081,1722816644154,-150.0,0.00010729,2]
[334184083,1722816644164,-150.0,0.00010729,2]
[334184084,1722816644172,-150.0,0.00010734,2]
[334184086,1722816644183,-150.0,0.00010734,2]
[334184088,1722816644192,-150.0,0.00010735,2]
[334184090,1722816644202,-150.0,0.00010745,2]
[334184091,1722816644211,-150.0,0.00010747,2]
[334184093,1722816644220,-150.0,0.00010751,2]
[334184095,1722816644229,-150.0,0.00010753,2]
[334184097,1722816644239,-150.0,0.00010755,2]
[334184099,1722816644248,-150.0,0.00010761,2]
[334184101,1722816644256,-150.0,0.00010764,2]
[334184103,1722816644265,-150.0,0.00010764,2]
[334184104,1722816644274,-150.0,0.00010766,2]
[334184106,1722816644284,-150.0,0.00010778,2]
[334184108,1722816644294,-150.0,0.00010779,2]
[334184110,1722816644306,-150.0,0.00010779,2]
[334184112,1722816644315,-1265.87570204,0.0001078,3]
[334184114,1722816644325,-150.0,0.0001078,2]
[334184116,1722816644334,-150.0,0.00010782,2]
[334184118,1722816644345,-150.0,0.00010786,2]
[334184120,1722816644354,-150.0,0.00010788,2]
[334184122,1722816644363,-150.0,0.00010788,2]
[334184124,1722816644372,-150.0,0.00010788,2]
[334184126,1722816644382,-150.0,0.00010789,2]
[334184127,1722816644391,-150.0,0.0001079,2]
[334184129,1722816644401,-500.0,0.000108,3]
[334184131,1722816644410,-1500.0,0.000108,2]
[334184133,1722816644419,-150.0,0.00010801,2]
[334184135,1722816644428,-150.0,0.00010803,2]
[334184137,1722816644437,-150.0,0.00010804,2]
[334184138,1722816644446,-150.0,0.00010806,2]
[334184140,1722816644456,-150.0,0.00010809,2]
[334184142,1722816644466,-150.0,0.00010811,2]
[334184144,1722816644475,-150.0,0.00010811,2]
[334184146,1722816644485,-150.0,0.00010812,2]
[334184148,1722816644494,-150.0,0.00010813,2]
[334184150,1722816644503,-150.0,0.00010813,2]
[334184152,1722816644512,-150.0,0.00010815,2]
[334184154,1722816644521,-150.0,0.00010816,2]
[334184155,1722816644530,-150.0,0.00010819,2]
[334184157,1722816644539,-150.0,0.0001082,2]
[334184159,1722816644549,-150.0,0.00010821,2]
[334184161,1722816644560,-150.0,0.00010822,2]
[334184163,1722816644569,-150.0,0.00010823,2]
[334184165,1722816644578,-1500.0,0.00010823,2]
[334184167,1722816644587,-1500.0,0.00010826,2]
[334184168,1722816644597,-150.0,0.0001083,2]
[334184170,1722816644607,-150.0,0.00010834,2]
[334184172,1722816644616,-150.0,0.00010836,2]
[334184174,1722816644625,-150.0,0.00010837,2]
[334184176,1722816644634,-151.37901365,0.00010843,2]
[334184178,1722816644644,-150.0,0.0001085,2]
[334184180,1722816644653,-150.0,0.00010852,2]
[334184182,1722816644662,-150.0,0.00010853,2]
[334184184,1722816644671,-150.0,0.00010854,2]
[334184186,1722816644680,-150.0,0.00010859,2]
[334184188,1722816644689,-1500.0,0.0001086,2]
[334184189,1722816644698,-150.0,0.00010862,2]
[334184191,1722816644707,-150.0,0.00010862,2]
[334184193,1722816644717,-151.37901363,0.00010862,2]
[334184195,1722816644726,-1500.0,0.00010862,2]
[334184197,1722816644736,-150.0,0.00010863,2]
[334184199,1722816644744,-150.0,0.00010864,2]
[334184201,1722816644753,-150.0,0.00010864,2]
[334184203,1722816644762,-150.0,0.00010866,2]
[334184205,1722816644772,-150.0,0.00010868,2]
[334184206,1722816644781,-150.0,0.00010869,2]
[334184208,1722816644790,-150.0,0.00010869,2]
[334184210,1722816644798,-150.0,0.00010871,2]
[334184212,1722816644809,-150.0,0.00010873,2]
[334184214,1722816644818,-150.0,0.00010875,2]
[334184216,1722816644828,-150.0,0.00010881,2]
[334184218,1722816644837,-151.37901363,0.00010881,2]
[334184220,1722816644846,-1343.39749,0.0001089,2]
[334184222,1722816644854,-150.0,0.00010893,2]
[334184224,1722816644863,-150.0,0.00010894,2]
[334184225,1722816644872,-150.0,0.00010895,2]
[334184227,1722816644881,-548.92324338,0.00010896,2]
[334184228,1722816644890,-1105.7059,0.000109,2]
[334184229,1722816644899,-38479.2431,0.000109,2]
[334184230,1722816644908,-174.7785873,0.000109,2]
[334184231,1722816644916,-151.37901363,0.000109,2]
[334184232,1722816644926,-289.51459622,0.000109,2]
[334184233,1722816644935,-700.0,0.000109,3]
[334184234,1722816644943,-174.34086054,0.000109,2]
[334184235,1722816644952,-153.68776239,0.000109,2]
[334184236,1722816644962,-343.1705514,0.000109,2]
[334184237,1722816644971,-150.0,0.00010901,2]
[334184238,1722816644981,-150.0,0.00010903,2]
[334184239,1722816644991,-150.0,0.00010904,2]
[334184240,1722816645001,-150.0,0.00010904,2]
[334184241,1722816645010,-150.0,0.0001091,2]
[334184243,1722816645020,-150.0,0.00010912,2]
[334184245,1722816645029,-500.0,0.00010912,2]
[334184247,1722816645039,-150.0,0.0001092,2]
[334184249,1722816645048,-150.0,0.00010921,2]
[334184251,1722816645060,-150.0,0.00010923,2]
[334184253,1722816645070,-150.0,0.00010924,2]
[334184255,1722816645079,-150.0,0.00010928,2]
[334184257,1722816645089,-150.0,0.00010928,2]
[334184259,1722816645100,-150.0,0.00010931,2]
[334184261,1722816645114,-150.0,0.00010933,2]
[334184263,1722816645124,-150.0,0.00010934,2]
[334184265,1722816645135,-150.0,0.00010934,2]
[334184267,1722816645145,-150.0,0.00010938,2]
[334184269,1722816645154,-150.0,0.0001094,2]
[334184271,1722816645163,-150.0,0.00010941,2]
[334184273,1722816645173,-150.0,0.00010941,2]
[334184275,1722816645183,-150.0,0.00010943,2]
[334184277,1722816645193,-150.0,0.00010943,2]
[334184279,1722816645202,-1500.0,0.00010944,2]
[334184281,1722816645212,-150.0,0.00010946,2]
[334184284,1722816645222,-150.0,0.00010947,2]
[334184286,1722816645231,-150.0,0.0001095,2]
[334184288,1722816645241,-200.0,0.00010959,2]
[334184289,1722816645250,-200.0,0.00010959,2]
[334184291,1722816645259,-260.36,0.00010959,2]
[334184293,1722816645268,-250.0,0.00010959,2]
[334184295,1722816645277,-150.0,0.00010959,2]
[334184297,1722816645288,-542.45,0.00010959,2]
[334184299,1722816645298,-150.0,0.00010965,2]
[334184301,1722816645312,-951.07675662,0.00010968,2]
[334184303,1722816645321,-150.0,0.00010971,2]
[334184305,1722816645331,-1500.0,0.00010971,2]
[334184307,1722816645340,-150.0,0.00010974,2]
[334184309,1722816645350,-150.0,0.00010975,2]
[334184311,1722816645359,-1500.0,0.00010977,2]
[334184313,1722816645369,-1500.0,0.00010981,2]
[334184315,1722816645379,-150.0,0.00010985,2]
[334184317,1722816645389,-150.0,0.00010987,2]
[334184319,1722816645398,-150.0,0.00010988,2]
[334184321,1722816645408,-150.0,0.00010988,2]
[334184339,1722816645575,-200.36575078,0.00010989,2]
[334184342,1722816645592,-155.7,0.0001099,2]
[334184344,1722816645603,-155.7,0.0001099,2]
[334184346,1722816645613,-150.0,0.00010994,2]
[334184348,1722816645623,-150.0,0.00010996,2]
[334184350,1722816645632,-169.58303749,0.00010997,2]
[334184352,1722816645642,-150.01,0.00010999,2]
[334184354,1722816645651,-2651.63712348,0.00010999,2]
[334184356,1722816645661,-150.0,0.00010999,2]
[334184358,1722816645670,-1823.0,0.00011,2]
[334184360,1722816645680,-125928.82103983,0.00011,2]
[334184362,1722816645690,-782311.36795114,0.00011,2]
[334184364,1722816645703,-1879.17624788,0.00011,2]
[334184367,1722816645723,-268.41,0.00011,2]
[334184369,1722816645734,-1165.0,0.00011,2]
[334184446,1722816646626,-923.88,0.000105,2]
[334184449,1722816646646,-313.169,0.000105,2]
[334184451,1722816646657,-1326.55931318,0.000105,2]
[334184453,1722816646667,-184.24354429,0.00011,2]
[334184455,1722816646678,-670.575,0.00011,2]
[334184458,1722816646689,-4094.55309192,0.00011,2]
[334184461,1722816646709,-5859.83324,0.00011,2]
[334184463,1722816646721,-1037.82671029,0.00011,2]
[334184466,1722816646740,-17433.30000001,0.00011,2]
[334184468,1722816646751,-1454.8,0.00011,2]
[334184470,1722816646762,-581.63105,0.00011,2]
[334184477,1722816646817,-276.345,0.00011,2]
[334184667,1722816890997,150.0,8.219e-05,2]
[334184668,1722816891019,150.0,8.219e-05,2]
[334184669,1722816891041,150.0,8.219e-05,2]
[334184670,1722816891063,150.0,8.219e-05,2]
[334184671,1722816891084,150.0,8.219e-05,2]
[334184672,1722816891105,4.9,8.219e-05,2]
[334184673,1722816935523,961.55291744,8.219e-05,2]
[334184674,1722816938250,150.0,8.219e-05,2]
[334184675,1722816938273,77.23086413,8.219e-05,2]
[334184676,1722816940623,150.0,8.219e-05,2]
[334184677,1722816940644,150.0,8.219e-05,2]
[334184678,1722816940666,150.0,8.219e-05,2]
[334184679,1722816940688,150.0,8.219e-05,2]
[334184680,1722816941094,150.0,8.219e-05,2]
[334184681,1722816941116,150.0,8.219e-05,2]
[334184682,1722816941138,150.0,8.219e-05,2]
[334184683,1722816941160,150.0,8.219e-05,2]
[334184684,1722816941186,150.0,8.219e-05,2]
[334184685,1722816941228,150.0,8.219e-05,2]
[334184686,1722816941265,150.0,8.219e-05,2]
[334184687,1722816941286,150.0,8.219e-05,2]
[334184688,1722816941308,150.0,8.219e-05,2]
[334184689,1722816941328,150.0,8.219e-05,2]
[334184690,1722816941350,150.0,8.219e-05,2]
[334184691,1722816941371,150.0,8.219e-05,2]
[334184692,1722816941394,150.0,8.219e-05,2]
[334184693,1722816941416,69.29489999,8.219e-05,2]
[334184694,1722816941510,80.70510001,8.219e-05,2]
[334184695,1722816941531,150.0,8.219e-05,2]
[334184696,1722816941551,150.0,8.219e-05,2]
[334184697,1722816941572,150.0,8.219e-05,2]
[334184698,1722816941593,150.0,8.219e-05,2]
[334184699,1722816941614,267.81102335,8.219e-05,2]
[334184700,1722816941634,13.37446064,8.219e-05,2]
[334184701,1722816946298,136.62553936,8.219e-05,2]
[334184702,1722816946322,90.99441195,8.219e-05,2]
[334184703,1722816947125,1633.3313854,8.219e-05,2]
[334184704,1722816958468,1338.22901454,8.219e-05,2]
[334184705,1722816962018,795.56450004,8.219e-05,2]
[334184706,1722816963315,1222.70109988,8.219e-05,2]
[334184707,1722817007179,1292.46067646,8.219e-05,2]
[334184710,1722817021191,155.0,8.219e-05,2]
[334184711,1722817046955,1630.0,0.00025,60]
[334184712,1722817051345,227.61995131,8.219e-05,2]
[334184713,1722817077483,169.1,9.448e-05,2]
[334184714,1722817086193,300.0,0.00027,120]
[334184715,1722817095053,300.0,0.00027,120]
[334184716,1722817101923,300.0,0.00027,120]
[334184717,1722817104883,23900.0,9.462e-05,2]
[334184718,1722817109856,300.0,0.00027,120]
[334184719,1722817124822,327.1,9.452e-05,2]
[334184720,1722817127356,287.92946233,0.00027,120]
[334184721,1722817155146,250.0,9.453e-05,2]
[334184722,1722817165360,227.61995131,9.448e-05,2]
[334184723,1722817185693,1000.0,9.453e-05,2]
[334184724,1722817202788,150.0,9.453e-05,2]
[334184725,1722817202850,150.0,9.453e-05,2]
[334184726,1722817202970,150.0,9.453e-05,2]
[334184727,1722817207326,150.0,9.453e-05,2]
[334184728,1722817248380,227.61995131,9.453e-05,2]
[334184729,1722817249020,1900.97,9.464e-05,2]
[334184730,1722817284974,2575.21,9.449e-05,2]
[334184731,1722817320610,500.0,9.497e-05,2]
[334184733,1722817358339,227.61995131,9.449e-05,2]
[334184734,1722817359739,740.03,8.219e-05,2]
[334184735,1722817373364,227.61995131,9.449e-05,2]
[334184736,1722817437583,264.43,9.506e-05,2]
[334184737,1722817438886,13163.11,9.506e-05,2]
[334184738,1722817479673,4296.03,9.509e-05,2]
[334184739,1722817482650,1678.74,9.509e-05,2]
[334184740,1722817489618,200.0,9.521e-05,2]
[334184741,1722817492586,227.61995131,9.449e-05,2]
[334184742,1722817501340,227.61995131,9.506e-05,2]
[334184743,1722817519950,495.73488057,9e-05,2]
[334184744,1722817534186,24993.83,0.00027,120]
[334184745,1722817556902,748.11907247,6.94e-05,2]
[334184746,1722817616379,227.61995131,6.94e-05,2]
[334184747,1722817640006,19693.1906201,8.412e-05,2]
[334184749,1722817673863,227.61995131,8.412e-05,2]
[334184750,1722817676618,163.55,9.56e-05,2]
[334184752,1722817688573,250.0,9.547e-05,2]
[334184753,1722817693492,200.0,9.547e-05,2]
[334184754,1722817697946,15502.60038886,8.412e-05,2]
[334184755,1722817729024,161.64,9.546e-05,2]
[334184756,1722817729193,161.64,9.55e-05,2]
[334184757,1722817729268,161.64,9.555e-05,2]
[334184758,1722817729321,161.64,9.559e-05,2]
[334184760,1722817755683,556.501445,9.515e-05,2]
[334184761,1722817762700,-161.64,9.563e-05,2]
[334184762,1722817762729,-388.908006,9.564e-05,2]
[334184763,1722817762757,-388.908006,9.566e-05,2]
[334184764,1722817762789,-161.64,9.568e-05,2]
[334184765,1722817762819,-388.908006,9.568e-05,2]
[334184766,1722817762848,-161.64,9.572e-05,2]
[334184767,1722817762877,-161.64,9.576e-05,2]
[334184768,1722817762908,-161.64,9.581e-05,2]
[334184769,1722817762937,-161.64,9.585e-05,2]
[334184770,1722817762964,-161.64,9.589e-05,2]
[334184771,1722817762993,-161.64,9.594e-05,2]
[334184772,1722817763022,-192.14261377,9.613e-05,2]
[334184773,1722817763052,-463.04,9.686e-05,2]
[334184774,1722817763081,-463.04,9.688e-05,2]
[334184775,1722817763111,-463.04,9.691e-05,2]
[334184776,1722817763141,-463.04,9.693e-05,2]
[334184777,1722817763171,-463.04,9.696e-05,2]
[334184778,1722817763200,-463.04,9.699e-05,2]
[334184779,1722817763227,-150.99,9.699e-05,2]
[334184780,1722817763255,-300.0,9.7e-05,2]
[334184781,1722817763284,-463.04,9.701e-05,2]
[334184782,1722817763312,-499.99,9.701e-05,2]
[334184783,1722817763339,-623.43,9.701e-05,2]
[334184784,1722817763367,-21.36096131,9.703e-05,2]
[334184785,1722817763400,-302.75903869,9.703e-05,2]
[334184786,1722817763432,-207.8,9.704e-05,2]
[334184787,1722817763462,-1313.08,9.704e-05,2]
[334184788,1722817763492,-1201.76,9.704e-05,2]
[334184789,1722817763527,-599.07,9.704e-05,2]
[334184790,1722817763556,-463.04,9.704e-05,2]
[334184791,1722817763585,-463.04,9.706e-05,2]
[334184792,1722817763613,-463.04,9.709e-05,2]
[334184793,1722817763642,-463.04,9.711e-05,2]
[334184794,1722817763671,-463.04,9.714e-05,2]
[334184795,1722817763700,-463.04,9.716e-05,2]
[334184796,1722817763729,-463.04,9.719e-05,2]
[334184797,1722817763758,-314.64820974,9.722e-05,2]
[334184798,1722817786365,227.61995131,9.559e-05,2]
[334184799,1722817787693,-148.39179026,9.722e-05,2]
[334184800,1722817787721,-463.04,9.724e-05,2]
[334184801,1722817787750,-463.04,9.727e-05,2]
[334184802,1722817787783,-463.04,9.729e-05,2]
[334184803,1722817787813,-463.04,9.732e-05,2]
[334184804,1722817787841,-463.04,9.734e-05,2]
[334184805,1722817787870,-42.28451628,9.738e-05,2]
[334184839,1722817832456,-304.44665786,9.738e-05,2]
[334184841,1722817832466,-347.02,9.808e-05,2]
[334184843,1722817832476,-300.0,9.961e-05,2]
[334184845,1722817832487,-1632.435648,9.962e-05,2]
[334184847,1722817832497,-159.817688,0.00010341,2]
[334184850,1722817832506,-169.1,0.00010393,2]
[334184852,1722817832516,-740.03,0.00010449,2]
[334184854,1722817832526,-259.6818,0.00010456,2]
[334184856,1722817832536,-7288.07661313,0.00010457,2]
[334184858,1722817832550,-3014.9869,0.00010467,2]
[334184860,1722817832559,-3779.8136,0.00010467,2]
[334184862,1722817832569,-150.0,0.00010499,2]
[334184864,1722817832579,-12813.0313189,0.000105,2]
[334184866,1722817832588,-499.99,0.000105,2]
[334184868,1722817832597,-212.814,0.00010521,2]
[334184870,1722817832607,-327.1,0.00010634,2]
[334184872,1722817832617,-1000.0,0.00010635,2]
[334184874,1722817832626,-1500.0,0.00010725,2]
[334184876,1722817832636,-150.0,0.00010726,2]
[334184878,1722817832645,-150.0,0.00010728,2]
[334184880,1722817832654,-150.0,0.00010728,2]
[334184882,1722817832664,-150.0,0.00010729,2]
[334184884,1722817832673,-200.0,0.00010741,2]
[334184886,1722817832683,-150.0,0.00010741,2]
[334184888,1722817832693,-1500.0,0.00010742,2]
[334184889,1722817832702,-300.0,0.0001075,2]
[334184890,1722817832712,-150.0,0.00010752,2]
[334184891,1722817832721,-300.0,0.00010755,2]
[334184892,1722817832730,-150.0,0.00010755,2]
[334184893,1722817832740,-1500.0,0.00010756,2]
[334184894,1722817832750,-150.0,0.00010763,2]
[334184896,1722817832759,-150.0,0.00010763,2]
[334184898,1722817832769,-150.0,0.00010765,2]
[334184900,1722817832778,-150.0,0.00010766,2]
[334184902,1722817832788,-150.0,0.00010767,2]
[334184904,1722817832801,-1500.0,0.00010767,2]
[334184905,1722817832810,-150.0,0.00010769,2]
[334184907,1722817832820,-150.0,0.00010772,2]
[334184909,1722817832829,-150.0,0.00010773,2]
[334184911,1722817832839,-150.0,0.00010776,2]
[334184913,1722817832848,-150.0,0.00010784,2]
[334184924,1722817832940,-150.0,0.00010785,2]
[334184926,1722817832950,-150.0,0.00010786,2]
[334184928,1722817832960,-150.0,0.00010787,2]
[334184930,1722817832970,-150.0,0.0001079,2]
[334184932,1722817832979,-265.30451,0.00010791,2]
[334184934,1722817832988,-1500.0,0.00010793,2]
[334184936,1722817832997,-672.21,0.00010796,2]
[334184937,1722817833006,-150.0,0.00010797,2]
[334184938,1722817833016,-473.66,0.000108,2]
[334184939,1722817833025,-1500.0,0.000108,2]
[334184940,1722817833035,-1000.0,0.000108,2]
[334184941,1722817833046,-1000.0,0.000108,2]
[334184942,1722817833056,-150.0,0.00010801,2]
[334184943,1722817833066,-150.0,0.00010803,2]
[334184944,1722817833076,-150.0,0.00010805,2]
[334184945,1722817833086,-150.0,0.00010805,2]
[334184946,1722817833095,-1500.0,0.00010806,2]
[334184947,1722817833106,-150.0,0.00010807,2]
[334184948,1722817833116,-150.0,0.00010807,2]
[334184949,1722817833126,-150.0,0.0001081,2]
[334184950,1722817833137,-150.0,0.00010815,2]
[334184951,1722817833147,-150.0,0.00010817,2]
[334184952,1722817833156,-1500.0,0.00010817,2]
[334184953,1722817833167,-150.0,0.00010818,2]
[334184954,1722817833178,-150.0,0.0001082,2]
[334184955,1722817833188,-150.0,0.00010825,2]
[334184956,1722817833198,-672.21,0.00010825,2]
[334184957,1722817833208,-150.0,0.00010826,2]
[334184958,1722817833219,-150.0,0.00010827,2]
[334184959,1722817833229,-150.0,0.00010828,2]
[334184960,1722817833240,-300.0,0.00010829,2]
[334184961,1722817833251,-150.0,0.00010834,2]
[334184962,1722817833261,-150.0,0.00010834,2]
[334184963,1722817833271,-150.0,0.00010835,2]
[334184964,1722817833281,-1500.0,0.00010835,2]
[334184965,1722817833291,-150.0,0.00010836,2]
[334184966,1722817833305,-150.0,0.00010839,2]
[334184967,1722817833314,-150.0,0.00010839,2]
[334184968,1722817833325,-150.0,0.0001084,2]
[334184969,1722817833337,-150.0,0.00010844,2]
[334184970,1722817833347,-300.0,0.00010853,2]
[334184971,1722817833357,-150.0,0.00010854,2]
[334184972,1722817833367,-150.0,0.00010854,2]
[334184973,1722817833378,-150.0,0.00010855,2]
[334184974,1722817833388,-150.0,0.00010857,2]
[334184975,1722817833398,-150.0,0.00010864,2]
[334184976,1722817833408,-150.0,0.00010864,2]
[334184977,1722817833418,-150.0,0.00010867,2]
[334184978,1722817833428,-672.21,0.00010869,2]
[334184979,1722817833439,-150.0,0.00010869,2]
[334184980,1722817833449,-150.0,0.00010872,2]
[334184981,1722817833466,-1500.0,0.00010876,2]
[334184982,1722817833476,-150.0,0.00010878,2]
[334184983,1722817833486,-150.0,0.00010879,2]
[334184984,1722817833498,-150.0,0.0001088,2]
[334184985,1722817833509,-672.21,0.0001088,2]
[334184986,1722817833519,-672.21,0.0001088,2]
[334184987,1722817833529,-672.21,0.0001088,2]
[334184988,1722817833540,-672.21,0.0001088,2]
[334184989,1722817833555,-672.21,0.0001088,2]
[334184990,1722817833565,-672.21,0.0001088,2]
[334184991,1722817833575,-672.21,0.0001088,2]
[334184992,1722817833584,-150.0,0.00010881,2]
[334184993,1722817833595,-150.0,0.00010885,2]
[334184994,1722817833605,-672.21,0.00010888,2]
[334184995,1722817833615,-150.0,0.0001089,2]
[334184996,1722817833625,-39473.0,0.0001089,2]
[334184997,1722817833635,-444.55916,0.0001089,2]
[334184998,1722817833645,-672.21,0.00010891,2]
[334184999,1722817833655,-150.0,0.00010892,2]
[334185000,1722817833665,-150.0,0.00010893,2]
[334185001,1722817833675,-150.0,0.00010895,2]
[334185002,1722817833687,-150.0,0.00010896,2]
[334185003,1722817833698,-150.0,0.00010897,2]
[334185004,1722817833710,-150.0,0.00010898,2]
[334185005,1722817833720,-245.958,0.000109,2]
[334185006,1722817833731,-424.8047,0.000109,2]
[334185007,1722817833741,-300.0,0.000109,2]
[334185008,1722817833751,-1533.01420893,0.000109,2]
[334185009,1722817833761,-311.637667,0.000109,2]
[334185010,1722817833770,-802.14810037,0.000109,2]
[334185011,1722817833780,-163.20589833,0.000109,2]
[334185012,1722817833790,-162.03527453,0.000109,2]
[334185013,1722817833808,-150.0,0.00010901,2]
[334185014,1722817833818,-1500.0,0.00010901,2]
[334185015,1722817833828,-150.0,0.00010902,2]
[334185016,1722817833837,-300.0,0.00010902,2]
[334185017,1722817833848,-150.0,0.00010904,2]
[334185018,1722817833858,-150.0,0.00010906,2]
[334185019,1722817833868,-150.0,0.00010908,2]
[334185020,1722817833878,-150.0,0.00010909,2]
[334185021,1722817833888,-500.0,0.00010911,2]
[334185022,1722817833898,-500.0,0.00010912,2]
[334185023,1722817833908,-500.0,0.00010912,2]
[334185024,1722817833918,-500.0,0.00010912,2]
[334185025,1722817833927,-150.0,0.00010913,2]
[334185026,1722817833938,-150.0,0.00010913,2]
[334185027,1722817833948,-189.40050836,0.0001092,2]
[334185028,1722817833957,-672.21,0.0001092,2]
[334185029,1722817833968,-150.0,0.00010921,2]
[334185030,1722817833978,-150.0,0.00010921,2]